Cogmind - Beta 15 @@@ ROGUE MODE // 2025.07.05 @ 09:17:22 Player: Florist Result: Destroyed by VK-HPP(R) with Subdweller Laser Performance ------------- Evolutions (0) 0 Regions Visited (2) 400 Robots Destroyed (18) 90 Value Destroyed (503) 503 Prototype IDs (11) 220 Alien Tech Used (0) 0 Bonus (0) 0 TOTAL SCORE: 1213 Bonus ------- None Cogmind --------- Core Integrity 0/250 Matter 56/300 Energy 154/200 System Corruption 0% Temperature Cool (6) Movement Treading (160) Location -10/Subcaves Parts ------- > --- POWER (1) -------- Subdweller Power Source > --- PROPULSION (2) --- Light Treads Light Treads > --- UTILITY (2) ------ Scrap Shield > --- WEAPON (2) ------- Riot Gun Riot Gun > --- INVENTORY (5) ---- Wheel Barrage Gun Makeshift Shrapnel Gun Subdweller Shrapnel Launcher Makeshift Hammer Peak State ------------ > --- POWER ------------ Subdweller Power Source > --- PROPULSION ------- Light Treads Light Treads > --- UTILITY ---------- Scrap Shield > --- WEAPON ----------- Barrage Gun Makeshift Shrapnel Gun > --- INVENTORY -------- Wheel Battle Rifle Barrage Gun Subdweller Shrapnel Launcher Makeshift Hammer [Rating: 16] Favorites ----------- Power Ion Engine Engine Ion Engine Power Core Light Nuclear Core Propulsion Light Treads Treads Light Treads Utility Scrap Shield Storage Huge Storage Unit Protection Scrap Shield Weapon Barrage Gun Energy Gun Riot Gun Ballistic Gun Barrage Gun Ballistic Cannon Battle Cannon Launcher Subdweller Shrapnel Launcher Impact Weapon Makeshift Hammer Build | -11 -10 -10 ------- Run | Yrd Mat Sub Slots Evolved . | . . . Power . | . . . Propulsion . | . . . Utility . | . . . Weapon . | . . . Parts Attached 23 | 6 3 14 Power 3 | 1 1 1 Engine 2 | 1 . 1 Core 1 | . 1 . Reactor . | . . . Propulsion 4 | 2 . 2 Treads 4 | 2 . 2 Leg . | . . . Wheel . | . . . Hover . | . . . Flight . | . . . Utility 5 | 1 2 2 Device . | . . . Storage 2 | 1 1 . Processor . | . . . Hackware . | . . . Protection 3 | . 1 2 Artifact . | . . . Weapon 11 | 2 . 9 Energy Gun 2 | . . 2 Energy Cannon . | . . . Ballistic Gun 6 | 2 . 4 Ballistic Cannon 1 | . . 1 Launcher 1 | . . 1 Special Weapon . | . . . Impact Weapon 1 | . . 1 Slashing Weapon . | . . . Piercing Weapon . | . . . Special Melee Weapon . | . . . Unidentified Prototypes . | . . . Parts Lost 2 | . 2 . Power 1 | . 1 . Propulsion . | . . . Utility . | . . . Weapon 1 | . 1 . Highest Loss Streak 2 | . 2 . To Critical Strikes . | . . . Average Backups 5 | 1 12 5 Power . | . 1 . Propulsion 1 | . 2 1 Utility . | . 5 . Weapon 3 | . 1 3 Tool/Special . | . . . Unused Backups 16 | . . 16 Power 1 | . . 1 Propulsion 2 | . . 2 Utility 6 | . . 6 Weapon 7 | . . 7 Tool/Special . | . . . Average Slot Usage (%) 84 | . 85 84 Engine 13 | . 6 13 Treads 28 | . 28 28 Storage 1 | . 14 . Protection 12 | . . 14 Energy Gun 7 | . . 8 Ballistic Gun 15 | . 27 13 Ballistic Cannon 5 | . . 5 Peak Build Rating 16 | 6 10 16 Average Rating 12 | 4 8 13 On Entrance 4 | . 6 7 Naked Turns . | . . . Heaviest Build 87 | 12 87 82 Greatest Support 40 | 40 40 40 Greatest Overweight (x) 2 | . 2 2 Average Overweight (x) . | . 1 . Largest Inventory Capacity 25 | 8 25 25 Average Capacity 7 | 6 22 5 Most Carried 20 | 3 20 19 Average Carried 5 | 1 12 5 Final Capacity 25 | 8 25 25 Final Carried 19 | 3 19 19 Class Distribution -------------------- 99% | Mutant Dominant Class ---------------- Mutant | -10/Materials Mutant | -10/Subcaves Resources | -11 -10 -10 ----------- Run | Yrd Mat Sub Matter Collected 956 | 238 76 642 Remotely . | . . . Salvage Created 527 | . 138 389 Parts 40 | . 7 33 Haulers Intercepted 1 | . 1 . Recyclers Shooed . | . . . Parts Field Recycled . | . . . Retrieved Matter . | . . . Parts Self-Destructed 26 | . . 26 Prevented 2 | . . 2 Kills | -11 -10 -10 ------- Run | Yrd Mat Sub Combat Hostiles Destroyed 17 | . 2 15 Guns 13 | . 2 11 Cannons 1 | . . 1 AOE 3 | . . 3 Classes Destroyed 4 | . 2 2 Hauler 1 | . 1 . Swarmer 6 | . . 6 Grunt 2 | . 2 . Subdweller 9 | . . 9 Best Kill Streak 3 | . 1 3 Combat Bots Only 3 | . 1 3 Max Kills in Single Turn 2 | . 1 2 Gunslinging . | . . . Exploded 1 | . . 1 Melee . | . . . Uniques/NPCs Destroyed . | . . . Combat | -11 -10 -10 -------- Run | Yrd Mat Sub Hostile Shots Fired 93 | . 46 47 Missed 27 | . 15 12 Hits 66 | . 31 35 Projectile 66 | . 31 35 Critical Strikes 3 | . . 3 Damage Taken 1240 | . 582 658 Core 264 | . 162 102 Absorbed by Shields . | . . . Redirected to Shielding 24 | . 24 . Core Remaining (%) 100 | 100 . . Volleys Fired 104 | . 17 87 Largest 2 | . 2 2 Hottest 100 | . 40 100 Shots Fired 165 | . 34 131 Gun 119 | . 34 85 Cannon 38 | . . 38 Launcher 8 | . . 8 Special . | . . . Kinetic 153 | . 34 119 Thermal . | . . . Explosive . | . . . Electromagnetic 12 | . . 12 Robot Hit Streak 17 | . 5 17 Robot Miss Streak 2 | . 2 2 Penetration Max . | . . . Secondary Targets . | . . . Shots Hit Robots 82 | . 24 58 Core Hits 37 | . 9 28 Critical Kills . | . . . Critical Parts Destroyed 1 | . 1 . Critical Strikes 1 | . 1 . Destroy 1 | . 1 . Melee Attacks 7 | . . 7 Impact 7 | . . 7 Slashing . | . . . Piercing . | . . . Sneak Attacks . | . . . Combat Hostiles . | . . . Follow-up Attacks . | . . . Damage Inflicted 1428 | . 191 1237 Guns 922 | . 191 731 Cannons 194 | . . 194 Explosions 312 | . . 312 Melee . | . . . Ramming . | . . . Kinetic 1259 | . 191 1068 Thermal 24 | . . 24 Explosive . | . . . Electromagnetic 145 | . . 145 Impact . | . . . Slashing . | . . . Piercing . | . . . Highest Corruption . | . . . Average Corruption . | . . . Corruption Purged . | . . . Corruption Blocked . | . . . Overload Shots . | . . . Overflow Damage . | . . . Projectiles . | . . . Explosions . | . . . Melee . | . . . Knockbacks 4 | . . 4 Impact . | . . . Kinetic 4 | . . 4 Secondary . | . . . Self-Inflicted Damage 48 | . . 48 Shots 2 | . . 2 Rammed . | . . . Targets Rammed . | . . . Kicked . | . . . Crushed . | . . . Highest Temperature 249 | . 20 249 Average Temperature 43 | . 9 155 Received Heat Transfer 521 | . 195 326 Siege Activations . | . . . Martial Activations . | . . . Shielding Activations . | . . . Robots Disrupted . | . . . Combat Hostiles . | . . . Robots Corrupted . | . . . Combat Hostiles . | . . . Parts Fried . | . . . Impact Corruptions . | . . . Robots Melted . | . . . Combat Hostiles . | . . . Parts Melted . | . . . Heat Transferred . | . . . Parts Sabotaged . | . . . Parts Stolen . | . . . Parts Stripped . | . . . Power Chain Reactions 1 | . . 1 Alert | -11 -10 -10 ------- Run | Yrd Mat Sub Maximum Alert Level . | . . . Low Security (%) 100 | 100 100 . Level 1 . | . . . Level 2 . | . . . Level 3 . | . . . Level 4 . | . . . Level 5 . | . . . High Security . | . . . Max Security . | . . . Peak Influence 45 | . 45 . Initial . | . . . Average 4 | . 5 . Influence Increases 237 | . 77 160 Destroy 0b10 Robot/C 160 | . 40 120 Destroy 0b10 Robot/NC 5 | . 5 . Destroy Leader 22 | . 12 10 Successful Hack 5 | . 5 . Lose Combat Pursuer 45 | . 15 30 Influence Decreases 127 | . 77 50 Time Decay 127 | . 77 50 Squads Dispatched . | . . . Investigation . | . . . Extermination . | . . . Reinforcement . | . . . Assault . | . . . Garrison . | . . . Intercept . | . . . Searches Triggered . | . . . Construction Impeded . | . . . Haulers Reinforced . | . . . Active Scanning Responses . | . . . Cargo Convoy Interrupts . | . . . Stealth | -11 -10 -10 --------- Run | Yrd Mat Sub Distress Signals . | . . . Communications Jammed . | . . . Distress Signals . | . . . Times Spotted 35 | . 9 26 Peak Tracking Total 4 | . 3 4 Tactical Retreats 2 | . 1 1 Traps | -11 -10 -10 ------- Run | Yrd Mat Sub Traps Triggered . | . . . Indirectly . | . . . Trap Hack Attempts . | . . . Triggered . | . . . Disarmed . | . . . Reprogrammed . | . . . Reused . | . . . Traps Extracted . | . . . Installed . | . . . Triggered . | . . . Machines | -11 -10 -10 ---------- Run | Yrd Mat Sub Machines Disabled . | . . . Max in Single Turn . | . . . Machines Repaired . | . . . Machines Dismantled . | . . . Machines Sabotaged . | . . . Overloaded Fab Kills . | . . . Hacking | -11 -10 -10 --------- Run | Yrd Mat Sub Machines Accessed 5 | . 1 4 Terminals 1 | . 1 . Fabricators . | . . . Repair Stations . | . . . Recycling Units . | . . . Scanalyzers . | . . . Garrison Access . | . . . Total Hacks 10 | . 3 7 Successful 9 | . 2 7 Failed 1 | . 1 . Catastrophic . | . . . Database Lockouts . | . . . Manual 4 | . 4 . Terminals 3 | . 3 . Fabricators . | . . . Repair Stations . | . . . Recycling Units . | . . . Scanalyzers . | . . . Garrison Access . | . . . Terminal Hacks 7 | . . 7 Record 5 | . . 5 Open Door 1 | . . 1 Proto ID Catalog 1 | . . 1 Fabricator Hacks . | . . . Repair Station Hacks . | . . . Recycling Unit Hacks . | . . . Scanalyzer . | . . . Garrison Access Hacks . | . . . Unauthorized Hacks 2 | . 2 . Terminals 2 | . 2 . Botnet 1 | . 1 . Skim 1 | . 1 . Fabricators . | . . . Repair Stations . | . . . Recycling Units . | . . . Scanalyzers . | . . . Garrison Access . | . . . Data Cores Recovered . | . . . Used . | . . . Hacking Detections 1 | . 1 . Full Trace Events . | . . . Feedback Events . | . . . Feedback Blocked . | . . . Robot Schematics Acquired . | . . . Robots Built . | . . . Authchips . | . . . Time . | . . . Total Robot Build Rating . | . . . Part Schematics Acquired . | . . . Parts Built . | . . . Authchips . | . . . Time . | . . . Total Part Build Rating . | . . . Parts Repaired . | . . . Time . | . . . Parts Recycled . | . . . Recycled Matter . | . . . Retrieved Matter . | . . . Retrieved Components . | . . . Parts Scanalyzed . | . . . Part Schematics Acquired . | . . . Parts Damaged . | . . . Bothacking | -11 -10 -10 ------------ Run | Yrd Mat Sub Used RIF Installer . | . . . Robots Hacked . | . . . Non-combat . | . . . Combat . | . . . Robot Hacks Applied . | . . . Relay Couplers Released . | . . . Fabnet Peak Effective % . | . . . Robots Rewired . | . . . Allies Hacked . | . . . Hacks Repelled . | . . . Allies | -11 -10 -10 -------- Run | Yrd Mat Sub Total Allies . | . . . Largest Group . | . . . Highest-Rated Group . | . . . Highest-Rated Ally . | . . . Total Orders . | . . . Ally Attacks . | . . . Total Damage . | . . . Kills . | . . . Allies Corrupted . | . . . Allies Melted . | . . . Intel | -11 -10 -10 ------- Run | Yrd Mat Sub Active Infowar (turns) . | . . . Robot Analysis Total . | . . . Derelict Logs Recovered 2 | . . 2 Drone Launches . | . . . Drone Recoveries . | . . . Exploration | -11 -10 -10 ------------- Run | Yrd Mat Sub Turns Passed 5576 | 81 631 4864 Spaces Moved 2226 | 46 198 1982 Core 3 | 3 . . Treads 2223 | 43 198 1982 Legs . | . . . Wheels . | . . . Hover . | . . . Flight . | . . . Fastest Speed 50 | 50 160 160 Average Speed 171 | 152 284 160 Slowest Speed 320 | 160 320 320 Overloaded Moves . | . . . Propulsion Burnouts . | . . . Robots Hopped . | . . . Potential Cave-ins . | . . . Cave-ins Triggered . | . . . Exploration Rate (%) 44 | 4 42 87 Regions Visited 2 Branch Regions 1 Pre-discovered Areas 2 | . . 2 Known Exits Taken . | . . . Unknown Exits Taken 2 | 1 1 . Scrap Searched 15 | . . 15 Spaces Dug 1 | . . 1 Terrain Destroyed 90 | . . 90 Melee . | . . . Projectile 2 | . . 2 AOE 88 | . . 88 Terrain Rammed . | . . . Walls Destroyed . | . . . Machines Disabled . | . . . Actions | -11 -10 -10 --------- Run | Yrd Mat Sub Total 3831 | 54 240 3537 Wait 1408 | . 6 1402 Move 2224 | 45 197 1982 Hop . | . . . Pick Up 31 | 3 16 12 Fast Attach 13 | 6 1 6 Attach 6 | . 1 5 Detach . | . . . Swap 13 | . 1 12 Drop 20 | . 1 19 Fire 104 | . 17 87 Melee 7 | . . 7 Ram . | . . . Kick . | . . . Crush . | . . . Escape Stasis . | . . . Rewire . | . . . Trap . | . . . Miscellaneous 5 | . . 5 Route ------- -11/Scrapyard -10/Materials (discovered 2 exits: [*Mat] / *Sub) -10/Subcaves (discovered 3 exits: [*Mat x2] / [*Scr]) History --------- Turn | Location | Event 3 | -11/Scrapyard | Discovered new exit (range 16) 82 | -11/Scrapyard | Entered Materials 314 | -10/Materials | Build established: Mutant 493 | -10/Materials | Discovered new exit (range 11) 682 | -10/Materials | Derelicts attacked the area 690 | -10/Materials | Discovered new exit (range 8) 709 | -10/Materials | Core integrity fell below 50% 713 | -10/Materials | Entered Subcaves 714 | -10/Subcaves | Approached by a straggling Scientist 1134 | -10/Subcaves | A swath of the cavern ceiling suddenly collapsed 1383 | -10/Subcaves | Discovered new exit (range 7) 1478 | -10/Subcaves | Shifting Twisted Machinery released Riot Gun 1614 | -10/Subcaves | Discovered new exit (range 15) 1936 | -10/Subcaves | Scientist uncovered a shortcut to Scraptown 2037 | -10/Subcaves | Shifting Twisted Machinery released Mak. System Shield 2067 | -10/Subcaves | Learned location of Zion (-7) 2067 | -10/Subcaves | Met a Zionite searching for "candidates" 2170 | -10/Subcaves | Learned Materials emergency access door positions 2281 | -10/Subcaves | Visited Clippyterm 2286 | -10/Subcaves | Learned location of Extension (-5) 2286 | -10/Subcaves | Learned Factory garrison access intel 2543 | -10/Subcaves | Visited 4L-MR0's lab 2919 | -10/Subcaves | Core integrity fell below 20% 3898 | -10/Subcaves | Ambushed by Subdweller buried in earth 4136 | -10/Subcaves | Shifting Twisted Machinery released Riot Gun 5577 | -10/Subcaves | Destroyed by VK-HPP(R) with Subdweller Laser Last Messages --------------- 04133_ Corrupted Lgt. Assault Rifle self-destruct mechanism malfunctions. 04133_ Corrupted Flight Unit fries itself beyond repair. Riot Gun falls loose from the Twisted Machinery. 04151_ Dropped Barrage Gun. 04151_ Acquired Riot Gun. 04162_ S-10 Pest destroyed. 04165_ Chain reaction triggered in Lgt. Ion Engine. 04165_ S-10 Pest destroyed. 04166_ Lgt. Assault Rifle fries itself beyond repair. 04169_ Flight Unit fries itself beyond repair. 04171_ Flight Unit self-destruct mechanism malfunctions. 04172_ Lgt. Assault Rifle fries itself beyond repair. 04248_ Scrap Shield Fragment affixed to Scrap Shield (+48). 04268_ W4-XUW(R): "OHNO!" 04284_ W4-XUW(R) destroyed. 04288_ Acquired 28 matter. 04299_ Acquired 23 matter. 04948_ Acquired 1 matter. 04950_ Acquired 8 matter. 05575_ VK-HPP(R) misfires. Map ----- +----------------------------------------------------+ | ????????????????????????????????????????????### | | ??????????????????????????????????????????????# # | | ??????????????????????????????????????????????#### | | ?????????????????????????????????????????????????? | | ?????????????????????????????????????????????????? | | ?????????????????????????????????????????????????? | | ?????????????????????????????????????????????????? | | ?????????????????????????????????????????????????? | | ?????????????????????????????????????????????????? | | ?????????????????????????????????????????????????? | | ?????????????????????????????????????????????????? | | ?????????????????????????????????????????????????? | | ????????#????????????????????????????????????????? | | ##??? #?????????????????????????????????#######? | | ## #?????????????????????????????????#"""""#? | | #????????????????#?#???????????????#""X""#? | | #????????????????? #$???????????????#" "#? | | #????????????????? ???????###?????### #### | | #???????????????##&